[Event "7th Sinquefield Cup GCT 2019"]
[Site "Saint Louis"]
[Date "2019.08.29"]
[Round "14.1"]
[White "Ding, Liren"]
[Black "Carlsen, Magnus"]
[Result "1-0"]
[ECO "A13"]
[WhiteElo "2805"]
[BlackElo "2882"]
[Annotator "RC"]
[PlyCount "174"]
[EventDate "2019.08.17"]
[EventType "tourn"]
[EventCountry "USA"]
[SourceTitle "playchess.com"]
[Source "ChessBase"]
[SourceQuality "1"]
[TimeMode "Bronstein"]
[TimeControl "300+3"]

1. c4 {[%emt 0:00:00]} Nf6 {[%emt 0:00:00]} 2. g3 {[%emt 0:00:00]} e6 {[%emt 0:00:04]} 3. Bg2 {[%emt 0:00:00]} d5 {[%emt 0:00:03]} 4. Nf3 {[%emt 0:00:00]} dxc4 {[%emt 0:00:08]} 5. Qa4+ {[%emt 0:00:00]} Nbd7 {[%emt 0:00:03]} 6. Qxc4 {[%emt 0:00:00]} a6 {[%emt 0:00:03]} 7. Qc2 {[%emt 0:00:07]} c5 {[%emt 0:00:04]} 8. Nc3 {[%emt 0:00:11]} Qc7 {[%emt 0:01:29]} 9. d4 {[%emt 0:00:24]} cxd4 {[%emt 0:00:13]} 10. Nxd4 {[%emt 0:00:03]} Bc5 {[%emt 0:00:04]} 11. Nb3 {[%emt 0:00:05]} Bd6 {[%emt 0:00:06]} 12. O-O {[%emt 0:00:03]} O-O {[%emt 0:00:05]} 13. Rd1 {[%emt 0:00:06]} Be5 {[%emt 0:00:30]} 14. Be3 {[%emt 0:00:06]} Nd5 {[%emt 0:01:27]} 15. Bxd5 {[%emt 0:00:08]} exd5 {[%emt 0:00:03]} 16. Rac1 {[%emt 0:00:34]} Nf6 {[%emt 0:00:24]} 17. Nxd5 {[%emt 0:00:06]} Nxd5 {[%emt 0:00:09]} 18. Rxd5 {[%emt 0:00:12]} Qxc2 {[%emt 0:00:06]} 19. Rxc2 {[%emt 0:00:03]} Bf6 {[%emt 0:00:03]} 20. Nc5 {[%emt 0:00:10]} Re8 {[%emt 0:00:03]} 21. Bd4 {[%emt 0:00:13]} Be7 {[%emt 0:00:03]} 22. Re5 {[%emt 0:00:25]} f6 {[%emt 0:00:07]} 23. Re3 {[%emt 0:00:03]} Bf5 {[%emt 0:00:21]} 24. Rd2 {[%emt 0:00:42]} Bxc5 {[%emt 0:00:06]} 25. Rxe8+ {[%emt 0:00:13]} Rxe8 {[%emt 0:00:03]} 26. Bxc5 {[%emt 0:00:03]} Rc8 {[%emt 0:00:03]} 27. b4 {[%emt 0:00:07]} a5 {[%emt 0:00:04]} 28. a3 {[%emt 0:00:04]} axb4 {[%emt 0:00:03]} 29. axb4 {[%emt 0:00:03]} Rc7 {[%emt 0:00:03]} 30. f3 {[%emt 0:00:04]} Rd7 {[%emt 0:00:03]} 31. Ra2 {[%emt 0:00:03]} h5 {[%emt 0:00:03]} 32. Kf2 {[%emt 0:00:03]} Kf7 {[%emt 0:00:03]} 33. h4 {[%emt 0:00:06]} Be6 {[%emt 0:00:03]} 34. Ra8 {[%emt 0:00:04]} b5 {[%emt 0:00:03]} 35. e4 {[%emt 0:00:31]} Bc4 {[%emt 0:00:03]} 36. Ke3 {[%emt 0:00:05]} Rd3+ {[%emt 0:00:03]} 37. Kf4 {[%emt 0:00:03]} Rd7 {[%emt 0:00:10]} 38. Rh8 {[%emt 0:00:22]} Kg6 {[%emt 0:00:03]} 39. g4 {[%emt 0:00:03]} hxg4 {[%emt 0:00:04]} 40. fxg4 {[%emt 0:00:03]} Kf7 {[%emt 0:00:06]} 41. h5 {[%emt 0:00:03]} Bb3 {[%emt 0:00:03]} 42. e5 {[%emt 0:00:08]} fxe5+ {[%emt 0:00:03]} 43. Kxe5 {[%emt 0:00:03]} Rd5+ {[%emt 0:00:03]} 44. Kf4 {[%emt 0:00:03]} Rd1 {[%emt 0:00:03]} 45. Rf8+ {[%emt 0:00:03]} Ke6 {[%emt 0:00:03]} 46. Re8+ {[%emt 0:00:03]} Kf7 {[%emt 0:00:03]} 47. Rf8+ {[%emt 0:00:06]} Ke6 {[%emt 0:00:03]} 48. Kg5 {[%emt 0:00:03]} Bc2 {[%emt 0:00:04]} 49. Re8+ {[%emt 0:00:04]} Kf7 {[%emt 0:00:03]} 50. Re7+ {[%emt 0:00:03]} Kg8 {[%emt 0:00:03]} 51. Rb7 {[%emt 0:00:04]} Rd5+ {[%emt 0:00:03]} 52. Kh4 {[%emt 0:00:04]} Bd3 {[%emt 0:00:03]} 53. g5 {[%emt 0:00:03]} Rd8 {[%emt 0:00:06]} 54. g6 {[%emt 0:00:03]} Bc4 {[%emt 0:00:03]} 55. Kg5 {[%emt 0:00:14]} Rd5+ {[%emt 0:00:03]} 56. Kf4 {[%emt 0:00:03]} Rd8 {[%emt 0:00:03]} 57. Bd6 {[%emt 0:00:10]} Be2 {[%emt 0:00:03]} 58. Be5 {[%emt 0:00:11]} Bxh5 {[%emt 0:00:03]} 59. Kg5 {[%emt 0:00:09]} Be2 {[%emt 0:00:03]} 60. Rxg7+ {[%emt 0:00:03]} Kf8 {[%emt 0:00:03]} 61. Rf7+ {[%emt 0:00:03]} Ke8 {[%emt 0:00:03]} 62. Kf6 {[%emt 0:00:05]} Bc4 {[%emt 0:00:03]} 63. Rh7 {[%emt 0:00:03]} Rd1 {[%emt 0:00:03]} 64. Re7+ {[%emt 0:00:09]} Kd8 {[%emt 0:00:03]} 65. Ra7 {[%emt 0:00:03]} Rf1+ {[%emt 0:00:03]} 66. Kg7 {[%emt 0:00:03]} Ke8 {[%emt 0:00:03]} 67. Bf6 {[%emt 0:00:03]} Re1 {[%emt 0:00:03]} 68. Kh8 {[%emt 0:00:03]} Rh1+ {[%emt 0:00:03]} 69. Kg7 {[%emt 0:00:03]} Re1 {[%emt 0:00:03]} 70. Rb7 {[%emt 0:00:03]} Re2 {[%emt 0:00:03]} 71. Ra7 {[%emt 0:00:03]} Re1 {[%emt 0:00:03]} 72. Rc7 {[%emt 0:00:03]} Re2 {[%emt 0:00:03]} 73. Ra7 {[%emt 0:00:03]} Re1 {[%emt 0:00:03]} 74. Ra3 {[%emt 0:00:03]} Re2 {[%emt 0:00:04]} 75. Ra8+ {[%emt 0:00:03]} Kd7 {[%emt 0:00:03]} 76. Kf8 {[%emt 0:00:03]} Rf2 {[%emt 0:00:03]} 77. Kg7 {[%emt 0:00:03]} Rg2 {[%emt 0:00:03]} 78. Rd8+ {[%emt 0:00:03]} Ke6 {[%emt 0:00:03]} 79. Re8+ {[%emt 0:00:03]} Kd7 {[%emt 0:00:03]} 80. Re5 {[%emt 0:00:04]} Kd6 {[%emt 0:00:03]} 81. Re3 {[%emt 0:00:03]} Kd7 {[%emt 0:00:03]} 82. Re7+ {[%emt 0:00:03]} Kd6 {[%emt 0:00:03]} 83. Re3 {[%emt 0:00:03]} Kd7 {[%emt 0:00:03]} 84. Kh6 {[%emt 0:00:03]} Rh2+ {[%emt 0:00:03]} 85. Kg7 {[%emt 0:00:03]} Rg2 {[%emt 0:00:03]} 86. Bd4 {[%emt 0:00:03]} Rg4 87. Bc5 Rg2 1-0